bitfinex/quotes_BTCUSD_20250226
["timestamp","ask_amount","ask_price","bid_price","bid_amount"]
[1740543600243,0.168095,89235.0,89234.0,0.02080456]
[1740543600571,0.168097,89234.0,89233.0,0.0085916]
[1740543600773,0.168099,89233.0,89232.0,0.1287472]
[1740543601126,0.168099,89233.0,89232.0,0.1323388]
[1740543601369,0.224129,89235.0,89232.0,0.1323388]
[1740543601532,0.168099,89233.0,89232.0,0.1323388]
[1740543602097,0.0394137,89237.0,89234.0,0.004]
[1740543602273,0.168095,89235.0,89234.0,0.004]
[1740543603155,0.03826508,89237.0,89234.0,0.004]
[1740543603374,0.168095,89235.0,89234.0,0.004]
[1740543603773,0.168095,89235.0,89234.0,0.0085916]
[1740543604170,0.168095,89235.0,89234.0,0.0135916]
[1740543604621,0.168095,89235.0,89234.0,0.0195916]
[1740543604967,0.168095,89235.0,89234.0,0.0235916]
[1740543605407,0.168093,89237.0,89234.0,0.0235916]
[1740543605712,0.168094,89236.0,89234.0,0.0235916]
[1740543605891,0.224119,89238.0,89234.0,0.0235916]
[1740543606212,0.03882387,89238.0,89234.0,0.0235916]
[1740543606573,0.224119,89239.0,89234.0,0.0235916]
[1740543606805,0.168089,89238.0,89234.0,0.0085916]
[1740543607118,0.168089,89238.0,89234.0,0.0115916]
[1740543607572,0.20660243,89238.0,89234.0,0.0085916]
[1740543607745,0.03851343,89238.0,89234.0,0.0165916]
[1740543607949,0.168088,89239.0,89234.0,0.0165916]
[1740543608158,0.0004241,89240.0,89234.0,0.03062548]
[1740543608358,0.0004241,89240.0,89239.0,0.0872916]
[1740543608521,0.0004241,89240.0,89239.0,0.1331916]
[1740543608908,0.0004241,89240.0,89239.0,0.14539514]
[1740543609119,0.1685101,89240.0,89239.0,0.14539514]
[1740543609348,0.20714383,89240.0,89239.0,0.14539514]
[1740543609700,0.03905783,89240.0,89239.0,0.14539514]
[1740543609899,0.03905783,89240.0,89239.0,0.1331916]
[1740543610146,0.03905783,89240.0,89239.0,0.14783585]
[1740543610906,0.03905783,89240.0,89239.0,0.16183585]
[1740543615641,0.20714383,89240.0,89239.0,0.16183585]
[1740543615874,0.03905783,89240.0,89239.0,0.16183585]
[1740543616107,0.03905783,89240.0,89239.0,0.1471916]
[1740543616423,0.03905783,89240.0,89239.0,0.16183585]
[1740543619031,0.03905783,89240.0,89239.0,0.1471916]
[1740543619414,0.03905783,89240.0,89239.0,0.16183585]
[1740543622194,0.03905783,89240.0,89239.0,0.1471916]
[1740543622361,0.03905783,89240.0,89239.0,0.16183585]
[1740543626782,0.20714383,89240.0,89239.0,0.16183585]
[1740543629666,0.03905783,89240.0,89239.0,0.16183585]
[1740543629819,0.20714383,89240.0,89239.0,0.16183585]
[1740543630211,0.20714383,89240.0,89239.0,0.1471916]
[1740543632192,0.03905783,89240.0,89239.0,0.1471916]
[1740543632367,0.03905783,89240.0,89239.0,0.15766526]
[1740543632566,0.03905783,89240.0,89239.0,0.1471916]
[1740543632748,0.03905783,89240.0,89239.0,0.15766526]
[1740543632954,0.20714383,89240.0,89239.0,0.15766526]
[1740543633472,0.20714383,89240.0,89239.0,0.1471916]
[1740543635885,0.20714383,89240.0,89239.0,0.014]
[1740543636291,0.59707721,89240.0,89239.0,0.014]
[1740543636494,0.61161806,89240.0,89239.0,0.014]
[1740543637198,0.52168468,89240.0,89239.0,0.014]
[1740543660120,0.52168468,89240.0,89239.0,0.097]
[1740543663103,0.01454085,89240.0,89239.0,0.097]
[1740543663303,0.48262685,89240.0,89239.0,0.097]
[1740543664593,0.3,89240.0,89239.0,0.097]
[1740543664921,0.51295029,89240.0,89239.0,0.097]
[1740543665280,0.51295029,89240.0,89239.0,0.014]
[1740543666143,0.51337439,89240.0,89239.0,0.014]
[1740543670363,0.18958434,89240.0,89239.0,0.014]
[1740543677842,0.18958434,89240.0,89239.0,0.0148482]
[1740543681126,0.02149834,89240.0,89239.0,0.14841172]
[1740543681334,0.02149834,89240.0,89239.0,0.1377482]
[1740543681542,0.02149834,89240.0,89239.0,0.15036302]
[1740543683693,0.02149834,89240.0,89239.0,0.15895462]
[1740543683948,0.02149834,89240.0,89239.0,0.19182952]
[1740543684145,0.02149834,89240.0,89239.0,0.15895462]
[1740543692676,0.2,89250.0,89240.0,0.079]
[1740543692822,0.224094,89248.0,89240.0,0.079]
[1740543693029,0.224094,89248.0,89241.0,0.01261152]
[1740543693563,0.168076,89246.0,89241.0,0.01261152]
[1740543693718,0.2,89250.0,89241.0,0.01261152]
[1740543693922,0.2,89250.0,89240.0,0.079]
[1740543693923,0.168084,89241.0,89240.0,0.079]
[1740543694198,0.168084,89241.0,89240.0,0.0925788]
[1740543694407,0.168082,89243.0,89240.0,0.0925788]
[1740543694653,0.168084,89241.0,89240.0,0.0925788]
[1740543694825,0.168084,89241.0,89240.0,0.0985788]
[1740543695991,0.168084,89241.0,89240.0,0.0925788]
[1740543696262,0.168084,89241.0,89240.0,0.086]
[1740543696577,0.168097,89234.0,89233.0,0.07456976]
[1740543696783,0.168099,89233.0,89232.0,0.0008472]
[1740543698943,0.168099,89233.0,89232.0,0.0048472]
[1740543699488,0.169099,89233.0,89232.0,0.0118472]
[1740543700047,0.001,89233.0,89232.0,0.0118472]
[1740543702054,0.169099,89233.0,89232.0,0.0118472]
[1740543703898,0.001,89233.0,89232.0,0.0118472]
[1740543704098,0.169099,89233.0,89232.0,0.0118472]
[1740543705711,0.001,89233.0,89232.0,0.0118472]
[1740543706109,0.169099,89233.0,89232.0,0.0949472]
[1740543706504,0.001,89233.0,89232.0,0.0949472]
[1740543706729,0.001,89233.0,89232.0,0.1510388]
[1740543707134,0.001,89233.0,89232.0,0.16366516]
[1740543712446,0.0014241,89233.0,89232.0,0.16366516]
[1740543719393,0.168077,89245.0,89233.0,0.081]
[1740543720347,0.224099,89247.0,89233.0,0.081]
[1740543720545,0.224099,89247.0,89234.0,0.10851694]
[1740543720743,0.224099,89247.0,89235.0,0.081]
[1740543720967,0.001,89245.0,89235.0,0.09362141]
[1740543721360,0.16809,89238.0,89235.0,0.09362141]
[1740543721999,0.16808,89243.0,89242.0,0.0085916]
[1740543723187,0.168077,89245.0,89242.0,0.0155916]
[1740543723408,0.16808,89243.0,89242.0,0.0155916]
[1740543724052,0.16808,89243.0,89242.0,0.0085916]
[1740543724610,0.3,89243.0,89242.0,0.0085916]
[1740543724855,0.46808,89243.0,89242.0,0.0085916]
[1740543725265,0.29896069,89243.0,89242.0,0.0155916]
[1740543725578,0.29896069,89243.0,89242.0,0.0085916]
[1740543725783,0.1685021,89245.0,89242.0,0.0085916]
[1740543726008,0.0004241,89245.0,89242.0,0.0155916]
[1740543726513,0.1685001,89245.0,89242.0,0.0155916]
[1740543726853,0.16808,89243.0,89242.0,0.0155916]
[1740543727292,0.3,89243.0,89242.0,0.0085916]
[1740543727685,0.30004196,89243.0,89242.0,0.0085916]
[1740543728975,0.30004196,89243.0,89242.0,0.0155916]
[1740543729142,0.30004196,89243.0,89242.0,0.0085916]
[1740543729324,0.30004196,89243.0,89242.0,0.0155916]
[1740543730511,4.196e-05,89243.0,89242.0,0.10505076]
[1740543730734,4.196e-05,89243.0,89242.0,0.15275076]
[1740543730935,4.196e-05,89243.0,89242.0,0.33501124]
[1740543731117,4.196e-05,89243.0,89242.0,0.33344264]
[1740543731699,4.196e-05,89243.0,89242.0,0.32644264]
[1740543731902,4.196e-05,89243.0,89242.0,0.33044264]
[1740543732143,4.196e-05,89243.0,89242.0,0.33744264]
[1740543733227,4.196e-05,89243.0,89242.0,0.16936064]
[1740543733766,4.196e-05,89243.0,89242.0,0.17092916]
[1740543733969,4.196e-05,89243.0,89242.0,0.33901116]
[1740543734172,4.196e-05,89243.0,89242.0,0.16536064]
[1740543734377,4.196e-05,89243.0,89242.0,0.17236064]
[1740543734576,4.196e-05,89243.0,89242.0,0.49746064]
[1740543734781,4.196e-05,89243.0,89242.0,0.66554264]
[1740543735156,4.196e-05,89243.0,89242.0,0.49746064]
[1740543740731,0.16812196,89243.0,89242.0,0.49746064]
[1740543741110,0.16812196,89243.0,89242.0,0.48485076]
[1740543741523,0.16812196,89243.0,89242.0,0.48622524]
[1740543741733,0.16812196,89243.0,89242.0,0.35872524]
[1740543741959,0.46812196,89243.0,89242.0,0.35013364]
[1740543742158,0.46812196,89243.0,89242.0,0.02503364]
[1740543742599,0.46812196,89243.0,89242.0,0.007]
[1740543743040,0.46812196,89243.0,89242.0,0.005]
[1740543743247,0.47674222,89243.0,89242.0,0.008]
[1740543744168,0.468093,89236.0,89235.0,0.0008482]
[1740543745393,0.470093,89236.0,89235.0,0.0008482]
[1740543746673,0.470093,89236.0,89235.0,0.0058482]
[1740543748346,0.490093,89236.0,89235.0,0.0058482]
[1740543748542,0.50463385,89236.0,89235.0,0.0058482]
[1740543749134,0.48463385,89236.0,89235.0,0.0058482]
[1740543754397,0.168099,89233.0,89232.0,0.0008472]
[1740543754764,0.168123,89220.0,89219.0,0.0094388]
[1740543756248,0.168123,89220.0,89219.0,0.0164388]
[1740543758538,0.168123,89220.0,89219.0,0.0204388]
[1740543761853,0.224157,89223.0,89219.0,0.0204388]
[1740543762363,0.168123,89220.0,89219.0,0.0204388]
[1740543762998,0.168123,89220.0,89219.0,0.0134388]
[1740543763202,0.168123,89220.0,89219.0,0.0204388]
[1740543763638,0.168123,89220.0,89219.0,0.0164388]
[1740543763912,0.168123,89220.0,89219.0,0.0194388]
[1740543764330,0.168123,89220.0,89219.0,0.0164388]
[1740543764471,0.168123,89220.0,89219.0,0.0094388]
[1740543764864,0.169123,89220.0,89219.0,0.0204388]
[1740543766347,0.168123,89220.0,89219.0,0.0134388]
[1740543766551,0.169123,89220.0,89219.0,0.0164388]
[1740543766871,0.169123,89220.0,89219.0,0.0184388]
[1740543767082,0.169123,89220.0,89219.0,0.1453388]
[1740543767583,0.169123,89220.0,89219.0,0.15640561]
[1740543771466,0.169123,89220.0,89219.0,0.17213089]
[1740543771692,0.169123,89220.0,89219.0,0.15640561]
[1740543771893,0.169123,89220.0,89219.0,0.16009454]
[1740543782608,0.001,89220.0,89219.0,0.16009454]
[1740543783379,0.001,89220.0,89219.0,0.16166349]
[1740543783821,0.001,89220.0,89219.0,0.16009454]
[1740543784058,0.001,89220.0,89219.0,0.35484033]
[1740543784219,0.001,89220.0,89219.0,0.35327138]
[1740543784396,0.001,89220.0,89219.0,0.18514638]
[1740543784613,0.001,89220.0,89219.0,0.18671517]
[1740543784814,0.0004242,89222.0,89219.0,0.09891517]
[1740543785015,0.0004242,89222.0,89221.0,0.0892916]
[1740543785265,0.0004242,89222.0,89221.0,0.0882916]
[1740543785468,0.0004242,89222.0,89221.0,0.1030435]
[1740543786737,0.0004242,89222.0,89221.0,0.1090435]
[1740543787346,0.0004242,89222.0,89221.0,0.1160435]
[1740543787550,0.0004242,89222.0,89221.0,0.14327834]
[1740543795966,0.1685432,89222.0,89221.0,0.14327834]
[1740543796955,0.0004242,89222.0,89221.0,0.14327834]
[1740543797174,0.1685432,89222.0,89221.0,0.14327834]
[1740543797505,0.0004242,89222.0,89221.0,0.14327834]
[1740543797802,0.1685432,89222.0,89221.0,0.14327834]
[1740543798153,0.0004242,89222.0,89221.0,0.14327834]
[1740543798366,0.224142,89230.0,89221.0,0.14327834]
[1740543798714,0.168108,89229.0,89222.0,0.05351066]
[1740543798949,0.168103,89231.0,89223.0,0.09344805]
[1740543799321,0.168105,89230.0,89223.0,0.09344805]
[1740543799529,0.168103,89231.0,89224.0,0.05813352]
[1740543799732,0.168105,89230.0,89225.0,0.0787]
[1740543799930,0.168099,89233.0,89227.0,0.0787]
[1740543800109,0.0004241,89245.0,89238.0,0.0075916]
[1740543800110,0.168087,89239.0,89238.0,0.0075916]
[1740543801603,0.168087,89239.0,89238.0,0.0135916]
[1740543801821,0.168087,89239.0,89238.0,0.0903916]
[1740543802771,0.468085,89241.0,89240.0,0.0075916]
[1740543802925,0.468085,89241.0,89240.0,0.06509241]
[1740543803126,0.468085,89241.0,89240.0,0.07770558]
[1740543803348,0.468085,89241.0,89240.0,0.06509241]
[1740543803550,0.468085,89241.0,89240.0,0.01789241]
[1740543803750,0.468085,89241.0,89240.0,0.0075916]
[1740543803952,0.3,89240.0,89238.0,0.0075916]
[1740543804253,0.168087,89239.0,89238.0,0.0075916]
[1740543805458,0.168087,89239.0,89238.0,0.0135916]
[1740543805662,0.168087,89239.0,89238.0,0.0075916]
[1740543805862,0.3,89240.0,89238.0,0.0829916]
[1740543806069,0.168087,89239.0,89238.0,0.1341916]
[1740543806489,0.16854606,89243.0,89242.0,0.0075916]
[1740543806864,0.16854606,89243.0,89242.0,0.02230312]
[1740543807050,0.16854606,89243.0,89242.0,0.0075916]
[1740543807252,0.16854606,89243.0,89242.0,0.03572228]
[1740543807469,0.16854606,89243.0,89242.0,0.02101076]
[1740543807676,0.16854606,89243.0,89242.0,0.03572228]
[1740543807917,0.16854606,89243.0,89242.0,0.02230312]
[1740543808062,0.16854606,89243.0,89242.0,0.01971152]
[1740543808483,0.16854606,89243.0,89242.0,0.01871152]
[1740543808679,0.46854606,89243.0,89242.0,0.005]
[1740543809574,0.47054606,89243.0,89242.0,0.005]
[1740543813914,0.47054606,89243.0,89242.0,0.0125916]
[1740543814027,0.47054606,89243.0,89242.0,0.0878916]
[1740543818179,0.00246606,89243.0,89242.0,0.14368076]
[1740543818579,0.00246606,89243.0,89242.0,0.15830895]
[1740543819188,0.00046606,89243.0,89242.0,0.15830895]
[1740543819401,0.00046606,89243.0,89242.0,0.15415715]
[1740543819576,0.00046606,89243.0,89242.0,0.15615715]
[1740543819777,0.00046606,89243.0,89242.0,0.16315715]
[1740543820231,0.00046606,89243.0,89242.0,0.16472574]
[1740543821040,0.00046606,89243.0,89242.0,0.16315715]
[1740543821635,0.00046606,89243.0,89242.0,0.16472574]
[1740543821833,0.00046606,89243.0,89242.0,0.16315715]
[1740543822738,0.168061,89253.0,89243.0,0.0815]
[1740543823036,0.168061,89253.0,89245.0,0.0815]
[1740543823263,0.224076,89256.0,89245.0,0.0815]
[1740543823470,0.224076,89256.0,89246.0,0.0146205]
[1740543823701,0.16806,89254.0,89246.0,0.0146205]
[1740543824857,0.001,89253.0,89246.0,0.0146205]
[1740543825056,0.001,89253.0,89247.0,0.01643495]
[1740543825441,0.16806,89254.0,89247.0,0.01643495]
[1740543825798,0.16906,89254.0,89247.0,0.01643495]
[1740543826093,0.16906,89254.0,89248.0,0.0767]
[1740543826300,0.001,89254.0,89248.0,0.0767]
[1740543826494,0.168057,89255.0,89249.0,0.0173553]
[1740543826796,0.001,89254.0,89249.0,0.0173553]
[1740543827958,0.168057,89255.0,89249.0,0.0173553]
[1740543828322,0.001,89254.0,89249.0,0.0173553]
[1740543828474,0.001,89254.0,89250.0,0.00996239]
[1740543828692,0.168057,89255.0,89250.0,0.00996239]
[1740543829050,0.001,89254.0,89250.0,0.00996239]
[1740543829448,0.20629323,89256.0,89250.0,0.00996239]
[1740543829652,0.03823623,89256.0,89255.0,0.0075916]
[1740543829849,0.000424,89260.0,89255.0,0.140417]
[1740543830164,0.000424,89260.0,89255.0,0.1455948]
[1740543830378,0.03967436,89259.0,89255.0,0.1455948]
[1740543832137,0.001,89256.0,89255.0,0.1455948]
[1740543832314,0.001,89256.0,89255.0,0.1515948]
[1740543832521,0.001,89256.0,89255.0,0.16691113]
[1740543832715,0.03967436,89259.0,89255.0,0.16691113]
[1740543832907,0.04067436,89259.0,89255.0,0.16091113]
[1740543833286,0.04067436,89259.0,89255.0,0.16791113]
[1740543833487,0.03967436,89259.0,89255.0,0.16091113]
[1740543833725,0.03967436,89259.0,89256.0,0.01609111]
[1740543834129,0.03967436,89259.0,89257.0,0.01459936]
[1740543835509,0.03967436,89259.0,89257.0,0.02059936]
[1740543836276,0.03967436,89259.0,89257.0,0.01459936]
[1740543836620,0.03967436,89259.0,89257.0,0.02059936]
[1740543837583,0.03967436,89259.0,89257.0,0.03736757]
[1740543843403,0.03967436,89259.0,89258.0,0.0065916]
[1740543843650,0.03967436,89259.0,89258.0,0.02118904]
[1740543845239,0.03967436,89259.0,89258.0,0.02718904]
[1740543845474,0.03967436,89259.0,89258.0,0.02118904]
[1740543845656,0.03967436,89259.0,89258.0,0.04342477]
[1740543846573,0.03967436,89259.0,89258.0,0.03742477]
[1740543846776,0.03967436,89259.0,89258.0,0.04342477]
[1740543848023,0.03967436,89259.0,89258.0,0.03742477]
[1740543848223,0.03967436,89259.0,89258.0,0.04342477]
[1740543848662,0.03967436,89259.0,89258.0,0.03742477]
[1740543850318,0.03967436,89259.0,89258.0,0.04342477]
[1740543851565,0.03967436,89259.0,89258.0,0.03742477]
[1740543851875,0.03967436,89259.0,89258.0,0.04342477]
[1740543852084,0.03967436,89259.0,89258.0,0.03742477]
[1740543852266,0.03967436,89259.0,89258.0,0.04342477]
[1740543859656,0.03967436,89259.0,89258.0,0.11932477]
[1740543861808,0.03967436,89259.0,89258.0,0.11332477]
[1740543861978,0.03967436,89259.0,89258.0,0.11932477]
[1740543865205,0.03967436,89259.0,89258.0,0.12089317]
[1740543865401,0.000424,89260.0,89259.0,0.14507888]
[1740543865718,0.000424,89260.0,89259.0,0.15915737]
[1740543866134,0.000424,89260.0,89259.0,0.16718932]
[1740543866351,0.224027,89275.0,89260.0,0.0767]
[1740543866565,0.39215048,89275.0,89274.0,0.0065916]
[1740543868868,0.39215048,89275.0,89274.0,0.0105916]
[1740543869050,0.43746869,89275.0,89274.0,0.0105916]
[1740543869542,0.43746869,89275.0,89274.0,0.0175916]
[1740543869744,0.43746869,89275.0,89274.0,0.02702076]
[1740543870927,0.1785899,89275.0,89274.0,0.02702076]
[1740543871251,0.1785899,89275.0,89274.0,0.04158746]
[1740543871554,0.1785899,89275.0,89274.0,0.03758746]
[1740543871851,0.1785899,89275.0,89274.0,0.02302076]
[1740543872052,0.1785899,89275.0,89274.0,0.02702076]
[1740543872554,0.1785899,89275.0,89274.0,0.01602076]
[1740543872735,0.1785899,89275.0,89274.0,0.02002076]
[1740543873516,0.1785899,89275.0,89274.0,0.02702076]
[1740543874157,0.1785899,89275.0,89274.0,0.02302076]
[1740543874560,0.1785899,89275.0,89274.0,0.0105916]
[1740543876111,0.04542169,89275.0,89274.0,0.0105916]
[1740543876457,0.21344169,89275.0,89274.0,0.0175916]
[1740543876657,0.04542169,89275.0,89274.0,0.0175916]
[1740543876909,0.04542169,89275.0,89274.0,0.1456916]
[1740543877107,0.00010348,89275.0,89274.0,0.3522544]
[1740543877334,0.00010348,89275.0,89274.0,0.31519934]
[1740543877499,0.00010348,89275.0,89274.0,0.32219934]
[1740543877705,0.00010348,89275.0,89274.0,0.15117734]
[1740543878052,0.00010348,89275.0,89274.0,0.22051905]
[1740543878275,0.00052738,89275.0,89274.0,0.16059302]
[1740543878651,0.00052738,89275.0,89274.0,0.15659302]
[1740543879076,0.00052738,89275.0,89274.0,0.16359302]
[1740543879655,0.00052738,89275.0,89274.0,0.17059302]
[1740543879972,0.00052738,89275.0,89274.0,0.33861502]
[1740543880135,0.00052738,89275.0,89274.0,0.40226951]
[1740543880653,0.00052738,89275.0,89274.0,0.72736951]
[1740543881465,0.00052738,89275.0,89274.0,0.71336951]
[1740543881674,0.00052738,89275.0,89274.0,0.70636951]
[1740543881847,0.00052738,89275.0,89274.0,0.71336951]
[1740543882303,0.00052738,89275.0,89274.0,0.70636951]
[1740543882796,0.00052738,89275.0,89274.0,0.71336951]
[1740543883450,0.00052738,89275.0,89274.0,0.72036951]
[1740543883856,0.00052738,89275.0,89274.0,0.72736951]
[1740543886005,0.00052738,89275.0,89274.0,0.56894751]
[1740543886201,0.00052738,89275.0,89274.0,0.73696951]
[1740543889192,0.00052738,89275.0,89274.0,0.72736951]
[1740543889426,0.00052738,89275.0,89274.0,0.73696951]
[1740543892390,0.00052738,89275.0,89274.0,0.56894751]
[1740543895982,0.16854738,89275.0,89274.0,0.55934751]
[1740543896196,0.16854738,89275.0,89274.0,0.43124751]
[1740543896446,0.16854738,89275.0,89274.0,0.10614751]
[1740543896647,0.16854738,89275.0,89274.0,0.04092514]
[1740543897046,0.16854738,89275.0,89274.0,0.02733354]
[1740543897225,0.16854738,89275.0,89274.0,0.02692514]
[1740543897398,0.16854738,89275.0,89274.0,0.03392514]
[1740543897613,0.00052738,89275.0,89274.0,0.0214394]
[1740543897817,0.00052738,89275.0,89274.0,0.03195016]
[1740543899049,0.168014,89278.0,89274.0,0.03195016]
[1740543899934,0.168014,89278.0,89274.0,0.02495016]
[1740543900273,0.168012,89279.0,89274.0,0.02495016]
[1740543900482,0.168012,89279.0,89274.0,0.03195016]
[1740543900699,0.04509712,89284.0,89274.0,0.03195016]
[1740543900700,0.168014,89278.0,89274.0,0.03195016]
[1740543900898,0.04509712,89284.0,89274.0,0.03195016]
[1740543901101,0.1684441,89275.0,89274.0,0.03195016]
[1740543901702,0.1684441,89275.0,89274.0,0.02495016]
[1740543901910,0.0004241,89275.0,89274.0,0.02495016]
[1740543902113,0.0004241,89275.0,89274.0,0.03195016]
[1740543902728,0.0004241,89275.0,89274.0,0.03895016]
[1740543903125,0.0004241,89275.0,89274.0,0.03195016]
[1740543903343,0.0004241,89275.0,89274.0,0.03895016]
[1740543903927,0.0004241,89275.0,89274.0,0.03195016]
[1740543904350,0.0004241,89275.0,89274.0,0.03895016]
[1740543904738,0.0004241,89275.0,89274.0,0.11745016]
[1740543904971,0.0004241,89275.0,89274.0,0.1523394]
[1740543905156,0.0004241,89275.0,89274.0,0.33441509]
[1740543905355,0.0004241,89275.0,89274.0,0.65794714]
[1740543906220,0.0004241,89275.0,89274.0,0.48992514]
[1740543906385,0.0004241,89275.0,89274.0,0.55627852]
[1740543907147,0.0004241,89275.0,89274.0,0.56327852]
[1740543907579,0.0004241,89275.0,89274.0,0.55627852]
[1740543908304,0.0004241,89275.0,89274.0,0.56327852]
[1740543908721,0.0004241,89275.0,89274.0,0.57027852]
[1740543909421,0.0004241,89275.0,89274.0,0.73830052]
[1740543912165,0.0004241,89275.0,89274.0,0.57027852]
[1740543914374,0.0004241,89275.0,89274.0,0.73830052]
[1740543914950,0.0004241,89278.0,89275.0,0.00689781]
[1740543915158,0.0004241,89278.0,89277.0,0.168016]
[1740543915556,0.0004241,89278.0,89277.0,0.1804968]
[1740543915752,0.0004241,89278.0,89277.0,0.5055968]
[1740543915953,0.0004241,89278.0,89277.0,0.5906884]
[1740543916183,0.0004241,89278.0,89277.0,0.6392884]
[1740543916352,0.0004241,89278.0,89277.0,0.76014536]
[1740543917242,0.0004241,89278.0,89277.0,0.76714536]
[1740543917654,0.0004241,89278.0,89277.0,0.75314536]
[1740543917858,0.0004241,89278.0,89277.0,0.76014536]
[1740543918114,0.0004241,89278.0,89277.0,0.76714536]
[1740543921194,0.0004241,89278.0,89277.0,1.41828621]
[1740543924446,0.01757285,89401.0,89277.0,1.41828621]
[1740543924654,0.44260582,89318.0,89317.0,0.0065916]
[1740543924845,0.66652682,89318.0,89317.0,0.0065916]
[1740543925049,0.71190911,89318.0,89317.0,0.0065916]
[1740543926001,0.71290911,89318.0,89317.0,0.0065916]
[1740543926325,0.71190911,89318.0,89317.0,0.0065916]
[1740543926526,0.71290911,89318.0,89317.0,0.0065916]
[1740543926911,0.71290911,89318.0,89317.0,0.0105916]
[1740543935425,0.71290911,89318.0,89317.0,0.0114394]
[1740543935634,0.71333301,89318.0,89317.0,0.0114394]
[1740543939215,0.48941201,89318.0,89317.0,0.0114394]
[1740543939415,0.0469321,89318.0,89317.0,0.0114394]
[1740543939625,0.0469321,89318.0,89317.0,0.02027334]
[1740543940194,0.0469321,89318.0,89317.0,0.0114394]
[1740543941231,0.0469321,89318.0,89317.0,0.0074394]
[1740543941626,0.0469321,89318.0,89317.0,0.0114394]
[1740543941827,0.0459321,89318.0,89317.0,0.0074394]
[1740543942239,0.0469321,89318.0,89317.0,0.0114394]
[1740543942651,0.0459321,89318.0,89317.0,0.0114394]
[1740543943060,0.2148711,89318.0,89317.0,0.0114394]
[1740543945473,0.0469321,89318.0,89317.0,0.0114394]
[1740543945616,0.2148711,89318.0,89317.0,0.0114394]
[1740543945820,0.0469321,89318.0,89317.0,0.0114394]
[1740543946033,0.2148711,89318.0,89317.0,0.0114394]
[1740543948168,0.0469321,89318.0,89317.0,0.0114394]
[1740543948466,0.0469321,89318.0,89317.0,0.09650334]
[1740543948891,0.0469321,89318.0,89317.0,0.10891832]
[1740543949331,0.0459321,89318.0,89317.0,0.10891832]
[1740543949873,0.0459321,89318.0,89317.0,0.10491832]
[1740543950293,0.0459321,89318.0,89317.0,0.11091832]
[1740543953158,0.0459321,89318.0,89317.0,0.27885932]
[1740543953401,0.00054981,89318.0,89317.0,0.27885932]
[1740543953630,0.00054981,89318.0,89317.0,0.32535932]
[1740543954090,0.00054981,89318.0,89317.0,0.65045932]
[1740543954730,0.00054981,89318.0,89317.0,0.64445932]
[1740543955244,0.00054981,89318.0,89317.0,0.65145932]
[1740543955448,0.00054981,89318.0,89317.0,0.65245932]
[1740543955922,0.00054981,89318.0,89317.0,0.48351832]
[1740543956147,0.00054981,89318.0,89317.0,0.65845932]
[1740543956367,0.00054981,89318.0,89317.0,0.65145932]
[1740543956812,0.00054981,89318.0,89317.0,0.49051832]
[1740543957271,0.00054981,89318.0,89317.0,0.65845932]
[1740543960887,0.00054981,89318.0,89317.0,0.49051832]
[1740543961090,0.00054981,89318.0,89317.0,0.65845932]
[1740543961739,0.0140131,89324.0,89317.0,0.65845932]
[1740543961740,0.3,89348.0,89317.0,0.49051832]
[1740543962096,0.167907,89336.0,89319.0,0.167937]
[1740543962298,0.167906,89336.0,89318.0,0.10000184]
[1740543962522,0.167906,89336.0,89320.0,0.01241004]
[1740543962780,0.22428353,89340.0,89321.0,0.11960339]
[1740543963008,0.167899,89339.0,89322.0,0.24849813]
[1740543963251,0.00141953,89340.0,89322.0,0.079]
[1740543963484,0.30041953,89340.0,89323.0,0.26177618]
[1740543963659,0.30041953,89340.0,89326.0,0.0454]
[1740543963660,0.34596898,89340.0,89326.0,0.0454]
[1740543963864,0.04596898,89340.0,89339.0,0.0855916]
[1740543964260,0.04596898,89340.0,89339.0,0.0979704]
[1740543964663,0.21386598,89340.0,89339.0,0.0979704]
[1740543964860,0.04596898,89340.0,89339.0,0.10776744]
[1740543965088,0.04596898,89340.0,89339.0,0.09538864]
[1740543965256,0.04596898,89340.0,89339.0,0.02876744]
[1740543966247,0.04596898,89340.0,89339.0,0.03876744]
[1740543966677,0.04596898,89340.0,89339.0,0.0289704]
[1740543967589,0.21386598,89340.0,89339.0,0.0289704]
[1740543967789,0.21386598,89340.0,89339.0,0.0165916]
[1740543970395,0.21386598,89340.0,89339.0,0.01]
[1740543970396,0.51386598,89340.0,89339.0,0.01]
[1740543970606,0.51428978,89340.0,89339.0,0.01]
[1740543972744,0.167929,89323.0,89322.0,0.0074392]
[1740543972948,0.167929,89323.0,89322.0,0.0008476]
[1740543974566,0.167929,89323.0,89322.0,0.0078476]
[1740543974793,0.3,89333.0,89322.0,0.0078476]
[1740543974986,0.3,89327.0,89322.0,0.0078476]
[1740543975161,0.3,89327.0,89323.0,0.0065916]
[1740543975368,0.167924,89327.0,89323.0,0.0065916]
[1740543975573,0.167927,89325.0,89323.0,0.0065916]
[1740543975781,0.167927,89324.0,89323.0,0.0065916]
[1740543976303,0.167927,89324.0,89323.0,0.0055916]
[1740543976514,0.167925,89326.0,89323.0,0.0055916]
[1740543976718,0.167919,89329.0,89324.0,0.0801]
[1740543976920,0.001,89325.0,89324.0,0.0801]
[1740543977123,0.16792,89328.0,89324.0,0.0801]
[1740543977334,0.223889,89330.0,89324.0,0.0801]
[1740543977535,0.04639278,89340.0,89331.0,0.0055916]
[1740543977738,0.04639278,89340.0,89332.0,0.0055916]
[1740543978159,0.223866,89339.0,89332.0,0.0055916]
[1740543978312,0.167905,89336.0,89332.0,0.0055916]
[1740543978718,0.04639278,89340.0,89332.0,0.0055916]
[1740543978719,0.223868,89338.0,89332.0,0.0055916]
[1740543978918,0.167905,89337.0,89332.0,0.0055916]
[1740543979119,0.05039278,89340.0,89332.0,0.0045916]
[1740543979321,0.167908,89335.0,89332.0,0.0045916]
[1740543979533,0.002,89336.0,89332.0,0.0045916]
[1740543979746,0.002,89336.0,89332.0,0.0085916]
[1740543979947,0.002,89336.0,89333.0,0.0045916]
[1740543980545,0.002,89336.0,89334.0,0.0785]
[1740543980750,0.002,89336.0,89335.0,0.00850916]
[1740543981136,0.1683218,89340.0,89335.0,0.00850916]
[1740543981359,0.0004238,89340.0,89335.0,0.00850916]
[1740543981562,0.167903,89338.0,89335.0,0.00850916]
[1740543981975,0.167903,89338.0,89334.0,0.0785]
[1740543981976,0.223866,89339.0,89334.0,0.0785]
[1740543982172,0.167907,89335.0,89334.0,0.0785]
[1740543983415,0.169907,89335.0,89334.0,0.0785]
[1740543983555,0.169907,89335.0,89334.0,0.0825]
[1740543983764,0.169907,89335.0,89334.0,0.004]
[1740543985805,0.002,89335.0,89334.0,0.004]
[1740543985976,0.169907,89335.0,89334.0,0.004]
[1740543995359,0.167929,89323.0,89322.0,0.0008476]
[1740543996201,0.002,89335.0,89322.0,0.0054392]